fUSD/lending_fUSD_20240109
["ID","MTS","AMOUNT","RATE_DAILY","PERIOD"]
[310989356,1704842120005,-500.0,0.00041095,30]
[310989357,1704842120026,-730.09,0.00041095,30]
[310989358,1704842120049,-5004.74,0.00041095,30]
[310989359,1704842120071,-1386.02,0.00041095,30]
[310989360,1704842120094,-545.33,0.00041095,30]
[310989361,1704842120116,-500.0,0.00041095,30]
[310989362,1704842120139,-21709.6,0.00041095,30]
[310989363,1704842120161,-779.69,0.00041095,30]
[310989364,1704842120185,-1092.03,0.00041095,30]
[310989365,1704842120207,-1258.14,0.00041095,30]
[310989366,1704842120229,-1000.51,0.00041095,30]
[310989367,1704842120251,-2205.08,0.00041095,30]
[310989368,1704842120276,-669.2,0.00041095,30]
[310989369,1704842120299,-812.06,0.00041095,30]
[310989370,1704842120322,-3439.25,0.00041095,30]
[310989371,1704842120344,-586.81,0.00041095,30]
[310989372,1704842120367,-601.85,0.00041095,30]
[310989373,1704842120390,-682.07,0.00041095,30]
[310989374,1704842120486,-538.15,0.00041095,30]
[310989375,1704842120513,-3000.0,0.00041095,120]
[310989376,1704842120536,-500.0,0.00041095,30]
[310989377,1704842120560,-500.0,0.00041095,30]
[310989378,1704842120584,-1525.29,0.00041095,30]
[310989379,1704842120609,-553.17091297,0.00041095,30]
[310989380,1704842120633,-983.11,0.00041095,30]
[310989381,1704842120656,-500.0,0.00041095,30]
[310989382,1704842120679,-500.0,0.00041095,30]
[310989383,1704842120703,-3883.47,0.00041095,30]
[310989384,1704842120725,-925.46,0.00041095,30]
[310989385,1704842120747,-500.0,0.00041095,30]
[310989386,1704842120770,-500.0,0.00041095,30]
[310989387,1704842120793,-2171.29,0.00041095,30]
[310989388,1704842120815,-500.0,0.00041095,30]
[310989389,1704842120839,-500.0,0.00041095,30]
[310989390,1704842120861,-1425.0,0.00041095,30]
[310989391,1704842120884,-875.12,0.00041095,30]
[310989392,1704842120908,-6193.2,0.00041095,30]
[310989393,1704842120931,-726.15,0.00041095,30]
[310989394,1704842120953,-500.0,0.00041095,30]
[310989395,1704842120975,-500.0,0.00041095,30]
[310989396,1704842120999,-3403.7,0.00041095,30]
[310989397,1704842121030,-500.0,0.00041095,30]
[310989398,1704842121079,-717.91,0.00041095,30]
[310989399,1704842121105,-500.0,0.00041095,30]
[310989400,1704842121129,-1058.67,0.00041095,30]
[310989401,1704842121153,-2645.27,0.00041095,30]
[310989402,1704842121176,-500.0,0.00041095,30]
[310989403,1704842121200,-4931.8,0.00041095,30]
[310989404,1704842121223,-5958.82,0.00041095,30]
[310989405,1704842121247,-500.0,0.00041095,30]
[310989406,1704842121272,-500.0,0.00041095,30]
[310989407,1704842121296,-2290.92,0.00041095,30]
[310989408,1704842121321,-2403.41,0.00041095,30]
[310989409,1704842121345,-1284.64,0.00041095,30]
[310989410,1704842121368,-2125.71,0.00041095,30]
[310989411,1704842121392,-500.0,0.00041095,30]
[310989412,1704842121416,-1630.65,0.00041095,30]
[310989413,1704842121439,-500.0,0.00041095,30]
[310989414,1704842121463,-500.0,0.00041095,30]
[310989415,1704842121485,-949.46,0.00041095,30]
[310989416,1704842121509,-669.11,0.00041095,30]
[310989417,1704842121542,-1414.03,0.00041095,30]
[310989418,1704842121571,-663.8,0.00041095,30]
[310989419,1704842121596,-500.0,0.00041095,30]
[310989420,1704842121620,-7989.27,0.00041095,30]
[310989421,1704842121644,-1010.15,0.00041095,30]
[310989422,1704842121669,-500.0,0.00041095,30]
[310989423,1704842121692,-500.0,0.00041095,30]
[310989424,1704842121716,-2783.12,0.00041095,30]
[310989425,1704842121742,-3965.35,0.00041095,30]
[310989426,1704842121767,-2579.54,0.00041095,30]
[310989427,1704842121791,-1081.89,0.00041095,30]
[310989428,1704842121816,-1730.95,0.00041095,30]
[310989429,1704842121838,-592.74,0.00041095,30]
[310989430,1704842121862,-500.0,0.00041095,30]
[310989431,1704842121886,-500.0,0.00041095,30]
[310989432,1704842121912,-500.0,0.00041095,30]
[310989433,1704842121940,-500.0,0.00041095,30]
[310989434,1704842121965,-500.0,0.00041095,30]
[310989435,1704842121991,-1092.62,0.00041095,30]
[310989436,1704842122017,-1393.07,0.00041095,30]
[310989437,1704842122045,-1224.28,0.00041095,30]
[310989438,1704842122073,-818.16,0.00041095,30]
[310989439,1704842122098,-11991.84,0.00041095,30]
[310989440,1704842122123,-500.0,0.00041095,30]
[310989441,1704842122149,-27380.51,0.00041095,30]
[310989442,1704842122173,-2013.86,0.00041095,30]
[310989443,1704842122197,-500.0,0.00041095,30]
[310989444,1704842122221,-500.0,0.00041095,30]
[310989445,1704842122244,-904.7,0.00041095,30]
[310989446,1704842122269,-1706.54,0.00041095,30]
[310989447,1704842122293,-2823.83,0.00041095,30]
[310989448,1704842122317,-500.0,0.00041095,30]
[310989449,1704842122340,-3887.97,0.00041095,30]
[310989450,1704842122364,-4005.68,0.00041095,30]
[310989451,1704842122392,-500.0,0.00041095,30]
[310989452,1704842122416,-2367.67,0.00041095,30]
[310989453,1704842122440,-500.0,0.00041095,30]
[310989454,1704842122466,-2546.29,0.00041095,30]
[310989455,1704842122490,-663.73,0.00041095,30]
[310989456,1704842122520,-1154.26,0.00041095,30]
[310989457,1704842122544,-500.0,0.00041095,30]
[310989458,1704842122568,-1244.64,0.00041095,30]
[310989459,1704842122591,-500.0,0.00041095,30]
[310989460,1704842122616,-1795.79,0.00041095,30]
[310989461,1704842122641,-1525.95,0.00041095,30]
[310989462,1704842122666,-7278.52,0.00041095,30]
[310989463,1704842122690,-854.61,0.00041095,30]
[310989464,1704842122715,-2091.41,0.00041095,30]
[310989465,1704842122739,-500.0,0.00041095,30]
[310989466,1704842122764,-3259.21,0.00041095,30]
[310989467,1704842122788,-5816.17,0.00041095,30]
[310989468,1704842122811,-500.0,0.00041095,30]
[310989469,1704842122835,-3324.3,0.00041095,30]
[310989470,1704842122859,-675.27,0.00041095,30]
[310989471,1704842122884,-500.0,0.00041095,30]
[310989472,1704842122909,-1059.55,0.00041095,30]
[310989473,1704842122931,-500.0,0.00041095,30]
[310989474,1704842122954,-500.0,0.00041095,30]
[310989475,1704842122978,-465.74917463,0.00041095,30]
[310989476,1704842123013,-2000.28,0.00041095,30]
[310989477,1704842123037,-1278.61,0.00041095,30]
[310989478,1704842123062,-500.0,0.00041095,30]
[310989479,1704842123086,-500.0,0.00041095,30]
[310989480,1704842123335,-500.0,0.00041095,30]
[310989481,1704842123359,-596.48,0.00041095,30]
[310989482,1704842123381,-1871.28,0.00041095,30]
[310989483,1704842123404,-1422.98,0.00041095,30]
[310989484,1704842123426,-1585.65,0.00041095,30]
[310989485,1704842123449,-500.0,0.00041095,30]
[310989486,1704842123471,-500.0,0.00041095,30]
[310989487,1704842123499,-2885.28,0.00041095,30]
[310989488,1704842123526,-780.06,0.00041095,30]
[310989489,1704842123551,-500.0,0.00041095,30]
[310989490,1704842123575,-814.7,0.00041095,30]
[310989491,1704842123598,-541.91240354,0.00041095,30]
[310989492,1704842123621,-500.0,0.00041095,30]
[310989493,1704842123646,-913.72,0.00041095,30]
[310989494,1704842123669,-1671.2,0.00041095,30]
[310989495,1704842123692,-1986.79,0.00041095,30]
[310989496,1704842123716,-4450.55,0.00041095,30]
[310989497,1704842123738,-500.0,0.00041095,30]
[310989498,1704842123763,-1100.06,0.00041095,30]
[310989499,1704842123787,-3847.27,0.00041095,30]
[310989500,1704842123811,-500.0,0.00041095,30]
[310989501,1704842123834,-500.0,0.00041095,30]
[310989502,1704842123859,-500.0,0.00041095,30]
[310989503,1704842123884,-500.0,0.00041095,30]
[310989504,1704842123909,-1794.12,0.00041095,30]
[310989505,1704842123934,-3594.86,0.00041095,30]
[310989506,1704842123958,-2061.25,0.00041095,30]
[310989507,1704842123982,-500.0,0.00041095,30]
[310989508,1704842124006,-1307.98,0.00041095,30]
[310989509,1704842124030,-500.0,0.00041095,30]
[310989510,1704842124053,-500.0,0.00041095,30]
[310989511,1704842124076,-1706.35,0.00041095,30]
[310989512,1704842124099,-4599.04,0.00041095,30]
[310989513,1704842124122,-4128.2,0.00041095,30]
[310989514,1704842124145,-500.0,0.00041095,30]
[310989515,1704842124168,-1556.27,0.00041095,30]
[310989516,1704842124192,-1243.55,0.00041095,30]
[310989517,1704842124215,-910.45,0.00041095,30]
[310989518,1704842124238,-488.64860404,0.00041095,30]
[310989519,1704842124262,-590.3,0.00041095,30]
[310989520,1704842124285,-500.0,0.00041095,30]
[310989521,1704842124308,-500.0,0.00041095,30]
[310989522,1704842124331,-39230.82,0.00041095,30]
[310989523,1704842124354,-4716.25,0.00041095,30]
[310989524,1704842124378,-6702.66,0.00041095,30]
[310989525,1704842124402,-7006.49,0.00041095,30]
[310989526,1704842124425,-500.0,0.00041095,30]
[310989527,1704842124449,-1693.97,0.00041095,30]
[310989528,1704842124474,-967.19,0.00041095,30]
[310989529,1704842124496,-500.0,0.00041095,30]
[310989530,1704842124519,-500.0,0.00041095,30]
[310989531,1704842124542,-500.0,0.00041095,30]
[310989532,1704842124565,-578.51,0.00041095,30]
[310989533,1704842124588,-1837.68,0.00041095,30]
[310989534,1704842124612,-340.15537199,0.00041095,30]
[310989535,1704842124635,-1664.94,0.00041095,30]
[310989536,1704842124660,-7298.53,0.00041095,30]
[310989537,1704842124683,-500.0,0.00041095,30]
[310989538,1704842124707,-922.1,0.00041095,30]
[310989539,1704842124731,-1312.52,0.00041095,30]
[310989540,1704842124757,-500.0,0.00041095,30]
[310989541,1704842124782,-2842.76,0.00041095,30]
[310989542,1704842124805,-500.0,0.00041095,30]
[310989543,1704842124830,-500.0,0.00041095,30]
[310989544,1704842124854,-500.0,0.00041095,30]
[310989545,1704842124878,-561.82,0.00041095,30]
[310989546,1704842124905,-1314.86,0.00041095,30]
[310989547,1704842124929,-500.0,0.00041095,30]
[310989548,1704842124954,-1567.97,0.00041095,30]
[310989549,1704842124977,-775.46,0.00041095,30]
[310989550,1704842125001,-1561.87,0.00041095,30]
[310989551,1704842125025,-588.56688156,0.00041095,30]
[310989552,1704842125048,-1078.48,0.00041095,30]
[310989553,1704842125071,-500.0,0.00041095,30]
[310989554,1704842125094,-548.44,0.00041095,30]
[310989555,1704842125117,-500.0,0.00041095,30]
[310989556,1704842125140,-9034.97,0.00041095,30]
[310989557,1704842125164,-2360.08,0.00041095,30]
[310989558,1704842125187,-13023.3,0.00041095,30]
[310989559,1704842125210,-865.09,0.00041095,30]
[310989560,1704842125235,-595.8,0.00041095,30]
[310989561,1704842125259,-500.0,0.00041095,30]
[310989562,1704842125283,-500.0,0.00041095,30]
[310989563,1704842125307,-500.0,0.00041095,30]
[310989564,1704842125330,-3070.59,0.00041095,30]
[310989565,1704842125353,-1320.14,0.00041095,30]
[310989566,1704842125378,-500.0,0.00041095,30]
[310989567,1704842125401,-531.33,0.00041095,30]
[310989568,1704842125425,-5095.89,0.00041095,30]
[310989569,1704842125795,-1223.73,0.00041095,30]
[310989570,1704842125820,-6071.75,0.00041095,30]
[310989571,1704842125843,-500.0,0.00041095,30]
[310989572,1704842125867,-2147.67,0.00041095,30]
[310989573,1704842125890,-500.0,0.00041095,30]
[310989574,1704842125916,-6795.86,0.00041095,30]
[310989575,1704842125943,-10907.35,0.00041095,30]
[310989576,1704842125966,-500.0,0.00041095,30]
[310989577,1704842125989,-500.0,0.00041095,30]
[310989578,1704842126014,-500.0,0.00041095,30]
[310989579,1704842126037,-500.0,0.00041095,30]
[310989580,1704842126060,-500.0,0.00041095,30]
[310989581,1704842126085,-888.28,0.00041095,30]
[310989582,1704842126109,-555.04,0.00041095,30]
[310989583,1704842126135,-5050.08,0.00041095,30]
[310989584,1704842126159,-500.0,0.00041095,30]
[310989585,1704842126183,-1927.42,0.00041095,30]
[310989586,1704842126208,-1944.05,0.00041095,30]
[310989587,1704842126233,-500.0,0.00041095,30]
[310989588,1704842126257,-500.0,0.00041095,30]
[310989589,1704842126282,-5656.37,0.00041095,30]
[310989590,1704842126307,-550.4739169,0.00041095,30]
[310989592,1704842126331,-500.0,0.00041095,30]
[310989593,1704842126355,-500.0,0.00041095,30]
[310989594,1704842126379,-1837.59,0.00041095,30]
[310989595,1704842126402,-818.04,0.00041095,30]
[310989596,1704842126426,-1647.85,0.00041095,30]
[310989597,1704842126449,-1131.96,0.00041095,30]
[310989598,1704842126473,-886.86,0.00041095,30]
[310989599,1704842126497,-500.0,0.00041095,30]
[310989600,1704842126522,-992.09,0.00041095,30]
[310989601,1704842126546,-1579.59,0.00041095,30]
[310989602,1704842126570,-4440.68,0.00041095,30]
[310989603,1704842126594,-11927.24,0.00041095,30]
[310989604,1704842126617,-500.0,0.00041095,30]
[310989605,1704842126640,-4282.95,0.00041095,30]
[310989606,1704842126663,-500.0,0.00041095,30]
[310989607,1704842126686,-1872.91,0.00041095,30]
[310989608,1704842126709,-1024.58,0.00041095,30]
[310989609,1704842126732,-996.19,0.00041095,30]
[310989610,1704842126755,-781.29,0.00041095,30]
[310989611,1704842126779,-500.0,0.00041095,30]
[310989612,1704842126802,-1045.29,0.00041095,30]
[310989613,1704842126826,-500.0,0.00041095,30]
[310989614,1704842126849,-900.99,0.00041095,30]
[310989615,1704842126875,-1057.0,0.00041095,30]
[310989616,1704842126902,-4720.58,0.00041095,30]
[310989617,1704842126928,-500.0,0.00041095,30]
[310989618,1704842126953,-500.0,0.00041095,30]
[310989619,1704842126977,-3285.94,0.00041095,30]
[310989620,1704842127001,-1003.08,0.00041095,30]
[310989621,1704842127028,-1249.57,0.00041095,30]
[310989622,1704842127052,-500.0,0.00041095,30]
[310989623,1704842127078,-12440.21,0.00041095,30]
[310989624,1704842127102,-1627.04,0.00041095,30]
[310989625,1704842127125,-415.88208512,0.00041095,30]
[310989626,1704842127147,-1000.0,0.00041095,30]
[310989627,1704842127170,-1319.1,0.00041095,30]
[310989628,1704842127193,-500.0,0.00041095,30]
[310989629,1704842127217,-500.0,0.00041095,30]
[310989630,1704842127241,-555.2,0.00041095,30]
[310989631,1704842127265,-500.0,0.00041095,30]
[310989632,1704842127289,-9353.22,0.00041095,30]
[310989633,1704842127313,-500.0,0.00041095,30]
[310989634,1704842127336,-500.0,0.00041095,30]
[310989636,1704842127359,-2169.89,0.00041095,30]
[310989637,1704842127383,-500.0,0.00041095,30]
[310989638,1704842127406,-767.58,0.00041095,30]
[310989639,1704842127429,-769.92,0.00041095,30]
[310989640,1704842127453,-2280.54,0.00041095,30]
[310989641,1704842127476,-729.93,0.00041095,30]
[310989642,1704842127499,-500.0,0.00041095,30]
[310989643,1704842127601,-5500.0,0.000411,30]
[310989644,1704842127625,-917.78142382,0.000411,30]
[310989645,1704842127650,-150.0,0.00041177,60]
[310989646,1704842127673,-500.0,0.00041178,30]
[310989647,1704842127696,-150.0,0.00041178,60]
[310989648,1704842127719,-150.0,0.00041178,60]
[310989649,1704842127743,-3679.22,0.00041178,30]
[310989650,1704842127767,-500.0,0.00041178,30]
[310989651,1704842127790,-500.0,0.00041178,30]
[310989652,1704842127814,-500.0,0.00041178,30]
[310989653,1704842127837,-500.0,0.00041178,30]
[310989654,1704842127860,-500.0,0.00041178,30]
[310989655,1704842127882,-500.0,0.00041178,30]
[310989656,1704842127907,-500.0,0.00041178,30]
[310989657,1704842127929,-500.0,0.00041178,30]
[310989658,1704842127951,-500.0,0.00041178,30]
[310989659,1704842127975,-534.9,0.00041178,30]
[310989660,1704842127998,-500.0,0.00041178,30]
[310989661,1704842128024,-700.83,0.00041178,30]
[310989662,1704842128047,-500.0,0.00041178,30]
[310989663,1704842128070,-1006.05,0.00041178,30]
[310989664,1704842128094,-500.0,0.00041178,30]
[310989665,1704842128117,-500.0,0.00041178,30]
[310989666,1704842128140,-500.0,0.00041178,30]
[310989667,1704842128163,-500.0,0.00041178,30]
[310989668,1704842128186,-500.0,0.00041178,30]
[310989669,1704842128209,-644.88,0.00041178,30]
[310989670,1704842128232,-500.0,0.00041178,30]
[310989671,1704842128256,-812.51,0.00041178,30]
[310989672,1704842128285,-500.0,0.00041178,30]
[310989673,1704842128308,-500.0,0.00041178,30]
[310989674,1704842128331,-500.0,0.00041178,30]
[310989675,1704842128353,-1608.61,0.00041178,30]
[310989676,1704842128375,-500.0,0.00041178,30]
[310989677,1704842128397,-296.72642879,0.00041178,30]
[310989678,1704842128420,-500.0,0.00041178,30]
[310989679,1704842128443,-500.0,0.00041178,30]
[310989680,1704842128466,-500.0,0.00041178,30]
[310989681,1704842128488,-339.42698396,0.00041178,30]
[310989682,1704842128511,-705.77,0.00041178,30]
[310989683,1704842128538,-939.1,0.00041178,30]
[310989684,1704842128561,-500.0,0.00041178,30]
[310989685,1704842128584,-973.06,0.00041178,30]
[310989686,1704842128606,-500.0,0.00041178,30]
[310989687,1704842128629,-500.0,0.00041178,30]
[310989688,1704842128652,-500.0,0.00041178,30]
[310989689,1704842128677,-567.07,0.00041178,30]
[310989690,1704842128702,-500.0,0.00041178,30]
[310989691,1704842128726,-500.0,0.00041178,30]
[310989692,1704842128750,-500.0,0.00041178,30]
[310989693,1704842128779,-500.0,0.00041178,30]
[310989694,1704842128802,-500.0,0.00041178,30]
[310989695,1704842128826,-814.29,0.00041178,30]
[310989696,1704842128848,-500.0,0.00041178,30]
[310989697,1704842128871,-500.0,0.00041178,30]
[310989698,1704842128894,-500.0,0.00041178,30]
[310989699,1704842128919,-500.0,0.00041178,30]
[310989700,1704842128942,-500.0,0.00041178,30]
[310989701,1704842128965,-588.78,0.00041178,30]
[310989702,1704842128986,-500.0,0.00041178,30]
[310989703,1704842129009,-500.0,0.00041178,30]
[310989704,1704842129035,-520.93,0.00041178,30]
[310989705,1704842129064,-527.3,0.00041178,30]
[310989706,1704842129087,-500.0,0.00041178,30]
[310989707,1704842129109,-685.93,0.00041178,30]
[310989708,1704842129132,-514.9441414,0.00041178,30]
[310989709,1704842129154,-500.0,0.00041178,30]
[310989710,1704842129176,-334.92424696,0.00041178,30]
[310989711,1704842129200,-511.61,0.00041178,30]
[310989712,1704842129222,-500.0,0.00041178,30]
[310989713,1704842129244,-500.0,0.00041178,30]
[310989714,1704842129269,-500.0,0.00041178,30]
[310989715,1704842129291,-508.28185368,0.00041178,30]
[310989716,1704842129314,-781.32,0.00041178,30]
[310989717,1704842129337,-681.27,0.00041178,30]
[310989718,1704842129361,-500.0,0.00041178,30]
[310989719,1704842129384,-500.0,0.00041178,30]
[310989720,1704842129406,-500.0,0.00041178,30]
[310989721,1704842129427,-500.0,0.00041178,30]
[310989722,1704842129449,-585.73,0.00041178,30]
[310989723,1704842129471,-500.0,0.00041178,30]
[310989724,1704842129493,-500.0,0.00041178,30]
[310989725,1704842129517,-500.0,0.00041178,30]
[310989726,1704842129540,-660.78,0.00041178,30]
[310989727,1704842129563,-500.0,0.00041178,30]
[310989728,1704842129585,-500.0,0.00041178,30]
[310989729,1704842129607,-500.0,0.00041178,30]
[310989730,1704842129629,-594.63,0.00041178,30]
[310989731,1704842129653,-500.0,0.00041178,30]
[310989732,1704842129676,-500.0,0.00041178,30]
[310989733,1704842129699,-500.0,0.00041178,30]
[310989734,1704842129723,-544.8,0.00041178,30]
[310989735,1704842129746,-500.0,0.00041178,30]
[310989736,1704842129771,-500.0,0.00041178,30]
[310989737,1704842129795,-500.0,0.00041178,30]
[310989738,1704842129819,-500.0,0.00041178,30]
[310989739,1704842129842,-821.66,0.00041178,30]
[310989740,1704842129865,-500.0,0.00041178,30]
[310989741,1704842129888,-500.0,0.00041178,30]
[310989742,1704842129911,-644.72,0.00041178,30]
[310989743,1704842129934,-326.78981685,0.00041178,30]
[310989744,1704842129955,-500.0,0.00041178,30]
[310989745,1704842129977,-500.0,0.00041178,30]
[310989746,1704842130001,-500.0,0.00041178,30]
[310989747,1704842130026,-525.33,0.00041178,30]
[310989748,1704842130048,-242.84555456,0.00041178,30]
[310989749,1704842130158,-500.0,0.00041178,30]
[310989750,1704842130223,-500.0,0.00041178,30]
[310989751,1704842130247,-500.0,0.00041178,30]
[310989752,1704842130270,-758.05,0.00041178,30]
[310989753,1704842130293,-567.52771254,0.00041178,30]
[310989754,1704842130316,-500.0,0.00041178,30]
[310989755,1704842130340,-500.0,0.00041178,30]
[310989756,1704842130363,-731.43,0.00041178,30]
[310989757,1704842130386,-500.0,0.00041178,30]
[310989758,1704842130409,-920.36,0.00041178,30]
[310989759,1704842130432,-500.0,0.00041178,30]
[310989760,1704842130454,-440.43309162,0.00041178,30]
[310989761,1704842130476,-603.37,0.00041178,30]
[310989762,1704842130498,-776.53,0.00041178,30]
[310989763,1704842130524,-500.0,0.00041178,30]
[310989764,1704842130548,-854.34,0.00041178,30]
[310989765,1704842130573,-500.0,0.00041178,30]
[310989766,1704842130597,-500.0,0.00041178,30]
[310989767,1704842130621,-500.0,0.00041178,30]
[310989768,1704842130643,-500.0,0.00041178,30]
[310989769,1704842130666,-500.0,0.00041178,30]
[310989770,1704842130690,-500.0,0.00041178,30]
[310989771,1704842130714,-500.0,0.00041178,30]
[310989772,1704842130737,-500.0,0.00041178,30]
[310989773,1704842130760,-582.6,0.00041178,30]
[310989774,1704842130785,-500.0,0.00041178,30]
[310989775,1704842130810,-500.0,0.00041178,30]
[310989776,1704842130833,-500.0,0.00041178,30]
[310989777,1704842130856,-923.47,0.00041178,30]
[310989778,1704842130879,-500.0,0.00041178,30]
[310989779,1704842130903,-500.0,0.00041178,30]
[310989780,1704842130926,-500.0,0.00041178,30]
[310989781,1704842130948,-500.0,0.00041178,30]
[310989782,1704842130971,-500.0,0.00041178,30]
[310989783,1704842130994,-500.0,0.00041178,30]
[310989784,1704842131019,-500.0,0.00041178,30]
[310989785,1704842131043,-500.0,0.00041178,30]
[310989786,1704842131068,-500.0,0.00041178,30]
[310989787,1704842131091,-500.0,0.00041178,30]
[310989788,1704842131113,-500.0,0.00041178,30]
[310989789,1704842131136,-500.0,0.00041178,30]
[310989790,1704842131159,-500.0,0.00041178,30]
[310989791,1704842131183,-500.0,0.00041178,30]
[310989792,1704842131205,-436.16,0.00041178,30]
[310989793,1704842131228,-910.46,0.00041178,30]
[310989794,1704842131251,-177.93296082,0.00041178,30]
[310989795,1704842131279,-500.0,0.00041178,30]
[310989796,1704842131302,-799.82,0.00041178,30]
[310989797,1704842131326,-500.0,0.00041178,30]
[310989798,1704842131349,-500.0,0.00041178,30]
[310989799,1704842131372,-829.78,0.00041178,30]
[310989800,1704842131396,-500.0,0.00041178,30]
[310989801,1704842131419,-500.0,0.00041178,30]
[310989802,1704842131442,-408.2198676,0.00041178,30]
[310989803,1704842131465,-500.0,0.00041178,30]
[310989804,1704842131491,-500.0,0.00041178,30]
[310989805,1704842131518,-500.0,0.00041178,30]
[310989806,1704842131542,-500.0,0.00041178,30]
[310989807,1704842131565,-500.0,0.00041178,30]
[310989808,1704842131590,-500.0,0.00041178,30]
[310989809,1704842131614,-500.0,0.00041178,30]
[310989810,1704842131638,-500.0,0.00041178,30]
[310989811,1704842131660,-175.50436398,0.00041178,30]
[310989812,1704842131684,-500.0,0.00041178,30]
[310989813,1704842131707,-500.0,0.00041178,30]
[310989814,1704842131730,-500.0,0.00041178,30]
[310989815,1704842131753,-500.0,0.00041178,30]
[310989816,1704842131778,-500.0,0.00041178,30]
[310989817,1704842131802,-500.0,0.00041178,30]
[310989818,1704842131826,-500.0,0.00041178,30]
[310989819,1704842131851,-500.0,0.00041178,30]
[310989820,1704842131875,-500.0,0.00041178,30]
[310989821,1704842131900,-500.0,0.00041178,30]
[310989822,1704842131927,-500.0,0.00041178,30]
[310989823,1704842131951,-500.0,0.00041178,30]
[310989824,1704842131974,-500.0,0.00041178,30]
[310989825,1704842131998,-500.0,0.00041178,30]
[310989826,1704842132022,-202.82116397,0.00041178,30]
[310989827,1704842132045,-500.0,0.00041178,30]
[310989828,1704842132068,-500.0,0.00041178,30]
[310989829,1704842132091,-500.0,0.00041178,30]
[310989830,1704842132114,-500.0,0.00041178,30]
[310989831,1704842132137,-500.0,0.00041178,30]
[310989832,1704842132160,-574.53,0.00041178,30]
[310989833,1704842132184,-683.47,0.00041178,30]
[310989834,1704842132208,-500.0,0.00041178,30]
[310989835,1704842132230,-500.0,0.00041178,30]
[310989836,1704842132253,-500.0,0.00041178,30]
[310989837,1704842132278,-500.0,0.00041178,30]
[310989838,1704842132301,-500.0,0.00041178,30]
[310989840,1704842132627,-500.0,0.00041178,30]
[310989841,1704842132654,-500.0,0.00041178,30]
[310989842,1704842132679,-500.0,0.00041178,30]
[310989843,1704842132704,-269.61906255,0.00041178,30]
[310989844,1704842132728,-732.2,0.00041178,30]
[310989845,1704842132753,-500.0,0.00041178,30]
[310989846,1704842132778,-500.0,0.00041178,30]
[310989847,1704842132802,-500.0,0.00041178,30]
[310989848,1704842132826,-500.0,0.00041178,30]
[310989849,1704842132850,-594.11,0.00041178,30]
[310989850,1704842132873,-861.51,0.00041178,30]
[310989851,1704842132896,-500.0,0.00041178,30]
[310989852,1704842132926,-500.0,0.00041178,30]
[310989853,1704842132949,-500.0,0.00041178,30]
[310989854,1704842132971,-161.42768989,0.00041178,30]
[310989855,1704842132995,-500.0,0.00041178,30]
[310989856,1704842133020,-1418.52,0.00041178,30]
[310989857,1704842133043,-500.0,0.00041178,30]
[310989858,1704842133065,-500.0,0.00041178,30]